bitfinex-derivatives/quotes_BTCF0:USTF0_20260127
["timestamp","ask_amount","ask_price","bid_price","bid_amount"]
[1769534719912,0.011386,87922.0,87902.0,0.10518838]
[1769534720115,0.1026,87931.0,87902.0,0.10518838]
[1769534720419,0.1026,87931.0,87903.0,0.10256]
[1769534720420,0.011387,87920.0,87903.0,0.10256]
[1769534720618,0.011387,87920.0,87903.0,0.10514838]
[1769534720819,0.011387,87917.0,87897.0,0.10256]
[1769534721021,0.011387,87918.0,87898.0,0.00258838]
[1769534721325,0.09821249,87926.0,87905.0,0.00976887]
[1769534721507,0.00928923,87936.0,87906.0,0.01397638]
[1769534721708,0.00928923,87936.0,87914.0,0.011387]
[1769534721914,0.00928923,87936.0,87915.0,0.00258838]
[1769534722427,0.00928923,87926.0,87898.0,0.00976887]
[1769534722727,0.00928923,87926.0,87904.0,0.00258838]
[1769534722925,0.00928923,87926.0,87898.0,0.00976887]
[1769534722926,0.02067523,87926.0,87898.0,0.00976887]
[1769534723117,0.011386,87923.0,87899.0,0.10256]
[1769534723314,0.21629846,87925.0,87900.0,0.00258838]
[1769534723518,0.10256,87925.0,87900.0,0.00258838]
[1769534723726,0.10256,87925.0,87903.0,0.00999999]
[1769534723924,0.10256,87925.0,87905.0,0.00999999]
[1769534724125,0.10256,87925.0,87906.0,0.00258838]
[1769534725021,0.10256,87925.0,87831.0,0.22599546]
[1769534725022,0.10256,87925.0,87898.0,0.30012]
[1769534725225,0.10256,87925.0,87885.0,0.00998881]
[1769534725418,0.12513158,87924.0,87886.0,0.10256]
[1769534725615,0.011388,87909.0,87887.0,0.00258838]
[1769534725816,0.10256,87908.0,87887.0,0.00258838]
[1769534726926,0.011388,87907.0,87887.0,0.00258838]
[1769534727128,0.011389,87903.0,87886.0,0.10256]
[1769534727316,0.10256,87908.0,87886.0,0.10514838]
[1769534727517,0.113948,87908.0,87886.0,0.10514838]
[1769534727714,0.011389,87905.0,87886.0,0.00258838]
[1769534727915,0.10256,87908.0,87886.0,0.00258838]
[1769534728620,0.06274163,87936.0,87887.0,0.01013223]
[1769534728822,0.011387,87920.0,87890.0,0.01013223]
[1769534729131,0.21628952,87926.0,87904.0,0.01013223]
[1769534729318,0.21628952,87926.0,87906.0,0.011388]
[1769534729319,0.10252,87926.0,87906.0,0.011388]
[1769534729517,0.10252,87926.0,87907.0,0.00258838]
[1769534729719,0.113906,87926.0,87907.0,0.00258838]
[1769534729923,0.011387,87920.0,87907.0,0.00258838]
[1769534730122,0.011387,87920.0,87902.0,0.10252]
[1769534730317,0.10252,87926.0,87893.0,0.32160223]
[1769534730318,0.10252,87926.0,87903.0,0.00258838]
[1769534730526,0.011387,87917.0,87898.0,0.10252]
[1769534730725,0.011387,87917.0,87899.0,0.00258838]
[1769534731535,0.011387,87914.0,87899.0,0.00258838]
[1769534731836,0.11375528,87925.0,87899.0,0.00258838]
[1769534732132,0.011387,87915.0,87899.0,0.00258838]
[1769534732429,0.011388,87912.0,87899.0,0.00258838]
[1769534732623,0.011388,87913.0,87899.0,0.00258838]
[1769534733332,0.011386,87922.0,87899.0,0.00258838]
[1769534733540,0.113906,87926.0,87902.0,0.011389]
[1769534733832,0.11375787,87925.0,87904.0,0.011389]
[1769534734032,0.011386,87925.0,87905.0,0.00258838]
[1769534734232,0.10252,87926.0,87905.0,0.00258838]
[1769534734427,0.113906,87926.0,87905.0,0.00258838]
[1769534735037,0.011386,87922.0,87905.0,0.00258838]
[1769534736139,0.10252,87926.0,87879.0,0.01052822]
[1769534736325,0.011387,87917.0,87898.0,0.00258838]
[1769534736725,0.011387,87914.0,87898.0,0.00258838]
[1769534737127,0.011387,87917.0,87898.0,0.00258838]
[1769534737327,0.011387,87920.0,87898.0,0.00258838]
[1769534737531,0.011386,87921.0,87898.0,0.01397738]
[1769534737831,0.10252,87923.0,87898.0,0.00258838]
[1769534738034,0.011387,87916.0,87898.0,0.00258838]
[1769534738336,0.10252,87923.0,87897.0,0.10252]
[1769534738536,0.10252,87923.0,87897.0,0.10510838]
[1769534738741,0.011387,87915.0,87897.0,0.10510838]
[1769534738935,0.011387,87919.0,87897.0,0.10510838]
[1769534739232,0.10252,87923.0,87901.0,0.011389]
[1769534739427,0.113906,87923.0,87903.0,0.011389]
[1769534739629,0.10252,87923.0,87904.0,0.00258838]
[1769534739832,0.011386,87922.0,87904.0,0.00258838]
[1769534740632,0.10252,87923.0,87904.0,0.01397738]
[1769534740938,0.10252,87923.0,87904.0,0.00258838]
[1769534741239,0.011386,87922.0,87904.0,0.00258838]
[1769534741536,0.011387,87918.0,87904.0,0.00258838]
[1769534741732,0.10252,87923.0,87890.0,0.01139]
[1769534741929,0.11374881,87922.0,87897.0,0.00258838]
[1769534742130,0.10252,87923.0,87897.0,0.00258838]
[1769534742332,0.011385,87932.0,87907.0,0.01055323]
[1769534742537,0.10252,87936.0,87907.0,0.01055323]
[1769534742538,0.011386,87928.0,87908.0,0.10510838]
[1769534742729,0.011386,87926.0,87908.0,0.00258838]
[1769534742929,0.10252,87936.0,87909.0,0.10252]
[1769534743229,0.1137527,87935.0,87914.0,0.011387]
[1769534743527,0.011385,87932.0,87915.0,0.00258838]
[1769534744240,0.113905,87932.0,87915.0,0.00258838]
[1769534744438,0.011386,87929.0,87915.0,0.00258838]
[1769534744742,0.011386,87929.0,87908.0,0.011388]
[1769534744934,0.011386,87929.0,87909.0,0.00258838]
[1769534745430,0.10252,87932.0,87909.0,0.00258838]
[1769534745841,0.011385,87929.0,87909.0,0.00258838]
[1769534747232,0.113905,87932.0,87909.0,0.00258838]
[1769534747628,0.10252,87932.0,87909.0,0.00258838]
[1769534747830,0.10252,87932.0,87914.0,0.011387]
[1769534748141,0.3,87942.0,87906.0,0.11303971]
[1769534748142,0.10252,87940.0,87917.0,0.01021821]
[1769534748339,0.00795884,87953.0,87919.0,0.01028139]
[1769534748543,0.10252,87948.0,87928.0,0.01028139]
[1769534748740,0.10252,87948.0,87929.0,0.00258838]
[1769534749139,0.10252,87948.0,87929.0,0.10510838]
[1769534749437,0.10252,87948.0,87929.0,0.11538977]
[1769534749645,0.00795884,87953.0,87938.0,0.011384]
[1769534749829,0.00795884,87953.0,87939.0,0.00258838]
[1769534750036,0.00795884,87953.0,87932.0,0.01028139]
[1769534750037,0.00795884,87953.0,87940.0,0.10248]
[1769534750233,0.00795884,87953.0,87923.0,0.01028139]
[1769534750433,0.00795884,87953.0,87924.0,0.40502838]
[1769534750628,0.00795884,87953.0,87924.0,0.00258838]
[1769534750836,0.00795884,87953.0,87929.0,0.01023547]
[1769534750837,0.11371648,87952.0,87929.0,0.01023547]
[1769534751035,0.00795884,87953.0,87932.0,0.01023547]
[1769534751338,0.011383,87952.0,87933.0,0.00258838]
[1769534751540,0.00795884,87953.0,87933.0,0.00258838]
[1769534752446,0.01934084,87953.0,87933.0,0.00258838]
[1769534753136,0.00795884,87953.0,87933.0,0.00258838]
[1769534753337,0.00795884,87953.0,87935.0,0.01012332]
[1769534753543,0.00795884,87953.0,87936.0,0.10506838]
[1769534753843,0.00795884,87953.0,87937.0,0.10248]
[1769534754045,0.011383,87949.0,87938.0,0.10248]
[1769534754240,0.011383,87949.0,87929.0,0.29996]
[1769534754241,0.011383,87949.0,87927.0,0.00258838]
[1769534754440,0.011383,87949.0,87928.0,0.10248]
[1769534754639,0.011383,87949.0,87929.0,0.00258838]
[1769534754842,0.00795884,87953.0,87929.0,0.00258838]
[1769534754843,0.011383,87946.0,87929.0,0.00258838]
[1769534755237,0.011383,87950.0,87929.0,0.00258838]
[1769534755631,0.011383,87947.0,87929.0,0.00258838]
[1769534756534,0.00795884,87953.0,87902.0,0.0101408]
[1769534756838,0.011385,87935.0,87909.0,0.011388]
[1769534757039,0.011385,87935.0,87910.0,0.00258838]
[1769534757234,0.011385,87935.0,87910.0,0.01272918]
[1769534757638,0.10248,87946.0,87913.0,0.0101408]
[1769534757850,0.10248,87946.0,87917.0,0.0101408]
[1769534758042,0.11373652,87945.0,87921.0,0.0101408]
[1769534758238,0.11373652,87945.0,87923.0,0.011386]
[1769534758548,0.011383,87945.0,87924.0,0.00258838]
[1769534758761,0.10248,87946.0,87925.0,0.12396319]
[1769534759050,0.10248,87946.0,87926.0,0.01268557]
[1769534759347,0.00795884,87953.0,87928.0,0.01009719]
[1769534759642,0.00795884,87953.0,87929.0,0.00258838]
[1769534759643,0.011383,87947.0,87929.0,0.00258838]
[1769534761239,0.011384,87937.0,87914.0,0.011387]
[1769534761436,0.10248,87948.0,87915.0,0.10506838]
[1769534761647,0.011384,87939.0,87915.0,0.10506838]
[1769534761843,0.10248,87948.0,87915.0,0.10506838]
[1769534762046,0.10248,87948.0,87916.0,0.01009761]
[1769534762239,0.11373264,87947.0,87917.0,0.01268599]
[1769534762544,0.011384,87943.0,87919.0,0.01003281]
[1769534762848,0.011383,87946.0,87924.0,0.02141881]
[1769534763048,0.011383,87946.0,87925.0,0.00258838]
[1769534763645,0.00795884,87953.0,87925.0,0.00258838]
[1769534763845,0.011384,87942.0,87925.0,0.00258838]
[1769534764044,0.011384,87942.0,87926.0,0.10248]
[1769534764246,0.011384,87942.0,87927.0,0.00258838]
[1769534764637,0.00795884,87953.0,87927.0,0.00258838]
[1769534764638,0.00795884,87953.0,87942.0,0.01006136]
[1769534764841,0.01138,87970.0,87948.0,0.02111566]
[1769534765044,0.01138,87970.0,87949.0,0.00258838]
[1769534765252,0.00777474,87966.0,87937.0,0.00973266]
[1769534765437,0.00777474,87960.0,87938.0,0.10506838]
[1769534765645,0.02222648,87967.0,87942.0,0.00973266]
[1769534765846,0.10248,87966.0,87951.0,0.011382]
[1769534766056,0.10248,87966.0,87952.0,0.00258838]
[1769534766849,0.011381,87965.0,87952.0,0.00258838]
[1769534767050,0.113861,87966.0,87944.0,0.00973266]
[1769534767258,0.10248,87966.0,87946.0,0.00973266]
[1769534767453,0.10248,87966.0,87947.0,0.00258838]
[1769534767749,0.113861,87966.0,87947.0,0.00258838]
[1769534768158,0.011381,87964.0,87947.0,0.00258838]
[1769534768757,0.011379,87976.0,87955.0,0.00973266]
[1769534768954,0.10248,87985.0,87960.0,0.00973266]
[1769534769153,0.10248,87985.0,87955.0,0.10248]
[1769534769154,0.10248,87985.0,87970.0,0.14729101]
[1769534769347,0.10248,87985.0,87971.0,0.00258838]
[1769534769750,0.10248,87992.0,87971.0,0.00258838]
[1769534769946,0.00852255,87986.0,87966.0,0.09065402]
[1769534770143,0.0017256,87986.0,87972.0,0.00086282]
[1769534770356,0.00258838,87986.0,87972.0,0.00086282]
[1769534771551,0.00592176,87985.0,87962.0,0.10248]
[1769534771753,0.00592176,87983.0,87963.0,0.00086282]
[1769534771951,0.00258838,87982.0,87963.0,0.01059548]
[1769534772159,0.00258838,87982.0,87964.0,0.10244]
[1769534772355,0.00258838,87982.0,87965.0,0.00086282]
[1769534772754,0.00675413,87978.0,87964.0,0.10244]
[1769534772957,0.00934251,87977.0,87964.0,0.10244]
[1769534773160,0.00934251,87977.0,87956.0,0.09056839]
[1769534773161,0.01138,87973.0,87956.0,0.09056839]
[1769534773463,0.00675413,87960.0,87944.0,0.10244]
[1769534773658,0.00675413,87970.0,87947.0,0.011383]
[1769534773958,0.00675413,87978.0,87952.0,0.00973266]
[1769534774158,0.00258838,87978.0,87955.0,0.00973266]
[1769534774360,0.00258838,87978.0,87960.0,0.02111366]
[1769534774562,0.00258838,87978.0,87961.0,0.01059548]
[1769534775361,0.00258838,87978.0,87961.0,0.00086282]
[1769534775560,0.011379,87977.0,87961.0,0.00086282]
[1769534775754,0.011379,87975.0,87961.0,0.00086282]
[1769534775959,0.00258838,87974.0,87961.0,0.00086282]
[1769534776156,0.011378,87983.0,87961.0,0.00086282]
[1769534776356,0.00258838,87982.0,87962.0,0.011381]
[1769534776550,0.00258838,87982.0,87963.0,0.00086282]
[1769534778861,0.00596953,87981.0,87963.0,0.00086282]
[1769534779163,0.00258838,87980.0,87963.0,0.00086282]
[1769534779963,0.011379,87976.0,87955.0,0.2998]
[1769534780264,0.011379,87976.0,87946.0,0.14558524]
[1769534780265,0.01138,87974.0,87956.0,0.10244]
[1769534780564,0.00591437,87971.0,87950.0,0.10244]
[1769534780758,0.00591437,87971.0,87952.0,0.00086282]
[1769534780759,0.00258838,87970.0,87952.0,0.00086282]
[1769534781470,0.00591437,87968.0,87952.0,0.00086282]
[1769534781667,0.00258838,87967.0,87952.0,0.00086282]
[1769534782272,0.00591437,87962.0,87952.0,0.00086282]
[1769534782470,0.00850275,87962.0,87941.0,0.011384]
[1769534782768,0.00850275,87962.0,87942.0,0.00086282]
[1769534782967,0.011381,87961.0,87942.0,0.00086282]
[1769534783152,0.00571845,87959.0,87942.0,0.00086282]
[1769534783360,0.00571845,87956.0,87938.0,0.10244]
[1769534783559,0.00258838,87955.0,87939.0,0.00086282]
[1769534783768,0.01397038,87955.0,87939.0,0.00086282]
[1769534784065,0.00571845,87951.0,87925.0,0.011386]
[1769534784268,0.01397138,87950.0,87927.0,0.011386]
[1769534784473,0.00562575,87949.0,87928.0,0.00086282]
[1769534784764,0.011383,87945.0,87928.0,0.00086282]
[1769534784970,0.00562575,87940.0,87916.0,0.01152674]
[1769534785162,0.00562575,87940.0,87918.0,0.011387]
[1769534785163,0.00258838,87939.0,87918.0,0.011387]
[1769534785357,0.011385,87935.0,87919.0,0.00086282]
[1769534785566,0.00258838,87934.0,87919.0,0.00086282]
[1769534786364,0.00258838,87934.0,87916.0,0.00013974]
[1769534786567,0.00492096,87933.0,87916.0,0.00100256]
[1769534786769,0.00258838,87932.0,87916.0,0.00100256]
[1769534786970,0.00258838,87932.0,87916.0,0.01238956]
[1769534787270,0.00258838,87932.0,87916.0,0.00100256]
[1769534787567,0.011385,87931.0,87916.0,0.00100256]
[1769534787767,0.00750934,87930.0,87916.0,0.00013974]
[1769534788270,0.00492096,87929.0,87913.0,0.00796246]
[1769534788471,0.00470683,87927.0,87913.0,0.00796246]
[1769534788787,0.00470683,87925.0,87914.0,0.00086282]
[1769534788974,0.00258838,87924.0,87914.0,0.00086282]
[1769534789363,8.502e-05,87923.0,87913.0,1e-08]
[1769534789675,0.00258838,87922.0,87913.0,1e-08]
[1769534790367,0.00258838,87922.0,87901.0,0.011389]
[1769534790567,0.00258838,87922.0,87907.0,0.00086282]
[1769534791957,8.502e-05,87923.0,87907.0,0.00086282]
[1769534792163,0.0026734,87923.0,87910.0,0.011388]
[1769534792363,0.0026734,87923.0,87911.0,0.00086282]
[1769534792560,0.0140594,87923.0,87911.0,0.00086282]
[1769534792765,0.00464354,87941.0,87916.0,0.011387]
[1769534792964,0.10967192,87940.0,87918.0,0.011387]
[1769534793164,0.22341556,87940.0,87919.0,0.00086282]
[1769534793463,0.011385,87934.0,87919.0,0.00086282]
[1769534793665,0.10506838,87933.0,87919.0,0.00086282]
[1769534793974,0.011385,87932.0,87919.0,0.00086282]
[1769534794174,0.00258838,87931.0,87919.0,0.00086282]
[1769534794374,0.011384,87938.0,87920.0,0.00990438]
[1769534794677,0.011384,87938.0,87906.0,0.01137572]
[1769534794678,0.1185077,87941.0,87921.0,0.01224882]
[1769534795970,0.1185077,87941.0,87923.0,0.011386]
[1769534796169,0.10248,87941.0,87924.0,0.01249276]
[1769534796767,0.011384,87938.0,87924.0,0.01249276]
[1769534796969,0.011384,87938.0,87924.0,0.00258838]
[1769534797880,0.10248,87941.0,87924.0,0.00258838]
[1769534798076,0.00465814,87936.0,87916.0,0.011387]
[1769534798278,0.011385,87934.0,87918.0,0.011387]
[1769534798473,0.00258838,87933.0,87918.0,0.011387]
[1769534798682,0.10248,87941.0,87918.0,0.00990438]
[1769534798872,0.00258838,87940.0,87921.0,0.00990438]
[1769534799071,0.00258838,87940.0,87925.0,0.011386]
[1769534799769,0.011384,87939.0,87922.0,0.011386]
[1769534800074,0.01397238,87939.0,87922.0,0.011386]
[1769534800272,0.00258838,87939.0,87917.0,0.11238438]
[1769534800472,0.011385,87930.0,87917.0,0.10248]
[1769534800781,0.00258838,87929.0,87917.0,0.10248]
[1769534801781,0.0074475,87929.0,87917.0,0.10248]
[1769534802084,0.01624512,87926.0,87906.0,0.02276372]
[1769534802278,0.01624512,87922.0,87906.0,0.11385572]
[1769534802482,0.00258838,87921.0,87906.0,0.11385572]
[1769534802983,0.00258838,87921.0,87907.0,0.011388]
[1769534803282,0.00258838,87921.0,87906.0,0.11385572]
[1769534803283,0.01582369,87930.0,87912.0,0.011388]
[1769534803483,0.10248,87929.0,87912.0,0.00990438]
[1769534803681,0.10506838,87929.0,87912.0,0.00990438]
[1769534803883,0.10506838,87929.0,87918.0,0.011387]
[1769534804180,0.10248,87933.0,87918.0,0.011387]
[1769534804377,0.00258838,87933.0,87912.0,0.00990438]
[1769534804680,0.011383,87947.0,87929.0,0.00990438]
[1769534804879,0.00398482,87946.0,87925.0,0.011386]
[1769534805075,0.011384,87938.0,87924.0,0.10248]
[1769534805272,0.00258838,87937.0,87911.0,0.00990438]
[1769534805477,0.011385,87936.0,87918.0,0.011387]
[1769534805678,0.00258838,87935.0,87918.0,0.011387]
[1769534806279,0.00258838,87935.0,87920.0,0.011387]
[1769534807775,0.00258838,87935.0,87912.0,0.11238438]
[1769534807975,0.00258838,87935.0,87913.0,0.00990438]
[1769534808495,0.01397338,87935.0,87915.0,0.00990438]
[1769534809383,0.01397338,87935.0,87919.0,0.011387]
[1769534809788,0.00258838,87935.0,87921.0,0.011386]
[1769534809976,0.003955,87934.0,87910.0,0.28314359]
[1769534810179,0.003955,87932.0,87914.0,0.011387]
[1769534810385,0.003955,87932.0,87908.0,0.10248]
[1769534810386,0.011385,87931.0,87915.0,0.011387]
[1769534810582,0.01397338,87931.0,87915.0,0.011387]
[1769534810786,0.01397338,87931.0,87917.0,0.011387]
[1769534810985,0.00258838,87931.0,87919.0,0.011387]
[1769534811791,0.00258838,87931.0,87921.0,0.011386]
[1769534812177,0.011384,87938.0,87923.0,0.011386]
[1769534812383,0.01397238,87938.0,87923.0,0.011386]
[1769534812687,0.10248,87937.0,87925.0,0.011386]
[1769534812892,0.00258838,87936.0,87924.0,0.011386]
[1769534813084,0.00258838,87936.0,87926.0,0.011386]
[1769534813277,0.011383,87948.0,87933.0,0.011385]
[1769534813484,0.10506838,87948.0,87938.0,0.011384]
[1769534813791,0.11043884,87953.0,87931.0,0.00990438]
[1769534814093,0.11043884,87953.0,87939.0,0.011384]
[1769534814278,0.11043884,87953.0,87943.0,0.011383]
[1769534814483,0.00795884,87953.0,87935.0,0.00973195]
[1769534814876,0.01054722,87953.0,87942.0,0.011384]
[1769534815392,0.00795884,87953.0,87942.0,0.011384]
[1769534815692,0.011381,87965.0,87944.0,0.00973195]
[1769534815892,0.011381,87960.0,87944.0,0.00973195]
[1769534816082,0.00258838,87959.0,87944.0,0.00973195]
[1769534817182,0.00258838,87959.0,87945.0,0.011383]
[1769534817694,0.011382,87958.0,87944.0,0.00973195]
[1769534817882,0.00258838,87957.0,87944.0,0.011383]
[1769534818084,0.011381,87964.0,87943.0,0.11221195]
[1769534818293,0.00258838,87963.0,87944.0,0.00973195]
[1769534818489,0.00258838,87963.0,87949.0,0.011383]
[1769534818807,0.00258838,87963.0,87944.0,0.00973195]
[1769534818983,0.00258838,87963.0,87949.0,0.011383]
[1769534819691,0.01138,87972.0,87956.0,0.011382]
[1769534819885,0.00258838,87967.0,87958.0,0.011382]
[1769534820086,0.10248,87972.0,87958.0,0.011382]
[1769534820287,0.00258838,87971.0,87960.0,0.011381]
[1769534820489,0.011378,87986.0,87967.0,0.01138]
[1769534820683,0.00963184,87978.0,87952.0,0.011382]
[1769534820892,0.00963184,87970.0,87952.0,0.01397038]
[1769534821091,0.011382,87954.0,87935.0,0.17012153]
[1769534821291,0.00258838,87953.0,87939.0,0.011384]
[1769534821596,0.10248,87967.0,87947.0,0.00973195]
[1769534821797,0.01138,87973.0,87955.0,0.00973195]
[1769534822100,0.01138,87969.0,87956.0,0.10248]
[1769534822285,0.01396838,87969.0,87956.0,0.10248]
[1769534822890,0.00258838,87969.0,87956.0,0.10248]
[1769534823686,0.011381,87966.0,87956.0,0.10248]
[1769534823882,0.011381,87964.0,87947.0,0.00973195]
[1769534824086,0.00963184,87976.0,87953.0,0.011382]
[1769534824287,0.01138,87972.0,87950.0,0.011383]
[1769534824488,0.00258838,87971.0,87951.0,0.00973195]
[1769534824892,0.01138,87970.0,87951.0,0.00973195]
[1769534825192,0.00258838,87969.0,87951.0,0.00973195]
[1769534825695,0.00258838,87969.0,87948.0,0.10244]
[1769534825889,0.011381,87962.0,87944.0,0.10244]
[1769534826094,0.00258838,87961.0,87944.0,0.10244]
[1769534826806,0.00258838,87961.0,87945.0,0.011383]
[1769534827096,0.00258838,87961.0,87944.0,0.11217195]
[1769534827496,0.01396938,87961.0,87945.0,0.00973195]
[1769534827698,0.01396938,87961.0,87944.0,0.10244]
[1769534827899,0.011383,87951.0,87931.0,0.011385]
[1769534828098,0.00258838,87950.0,87934.0,0.10244]
[1769534828298,0.011383,87949.0,87934.0,0.10244]
[1769534828498,0.00258838,87948.0,87934.0,0.10244]
[1769534830194,0.00963184,87942.0,87918.0,0.10244]
[1769534830499,0.011385,87935.0,87918.0,0.10244]
[1769534830795,0.00963184,87942.0,87918.0,0.10244]
[1769534830796,0.011385,87933.0,87918.0,0.10244]
[1769534830999,0.00258838,87932.0,87918.0,0.10244]
[1769534831189,0.00258838,87931.0,87918.0,0.10244]
[1769534832601,0.00258838,87931.0,87919.0,0.00973195]
[1769534833001,0.00258838,87931.0,87922.0,0.011386]
[1769534833196,0.00963184,87942.0,87919.0,0.00973195]
[1769534833400,0.00258838,87941.0,87919.0,0.00973195]
[1769534833600,0.01397238,87941.0,87919.0,0.02111895]
[1769534834192,0.01397238,87941.0,87921.0,0.011386]
[1769534834388,0.00963184,87957.0,87929.0,0.00973195]
[1769534834590,0.011381,87961.0,87941.0,0.00973195]
[1769534834807,0.00258838,87961.0,87943.0,0.00973195]
[1769534835101,0.01396938,87961.0,87943.0,0.00973195]
[1769534835291,0.00258838,87961.0,87943.0,0.00973195]
[1769534835688,0.00963184,87966.0,87943.0,0.00973195]
[1769534835899,0.10244,87967.0,87950.0,0.00973195]
[1769534836101,0.00963184,87975.0,87952.0,0.00973195]
[1769534836297,0.00258838,87974.0,87954.0,0.00973195]
[1769534836893,0.01138,87973.0,87954.0,0.00973195]
[1769534837094,0.00258838,87972.0,87954.0,0.00973195]
[1769534837397,0.01138,87971.0,87954.0,0.00973195]
[1769534837591,0.00258838,87970.0,87954.0,0.00973195]
[1769534841208,0.10244,87975.0,87957.0,0.00973195]
[1769534841390,0.01138,87973.0,87957.0,0.00973195]
[1769534841594,0.00258838,87972.0,87952.0,0.00973195]
[1769534841895,0.10244,87975.0,87958.0,0.00973195]
[1769534842104,0.10502838,87975.0,87959.0,0.011381]
[1769534842305,0.10502838,87975.0,87960.0,0.00973195]
[1769534842604,0.00258838,87975.0,87960.0,0.00973195]
[1769534843914,0.36150103,87992.0,87976.0,0.00994982]
[1769534843915,0.011377,87992.0,87976.0,0.00994982]
[1769534844097,0.00994868,88001.0,87977.0,0.00258838]
[1769534844098,0.10244,87995.0,87977.0,0.00258838]
[1769534844407,0.10244,87995.0,87978.0,0.011379]
[1769534844612,0.10244,87995.0,87980.0,0.00952737]
[1769534844796,0.00881766,87993.0,87981.0,0.01211575]
[1769534844992,0.011376,88004.0,87985.0,0.00952737]
[1769534845193,0.00086244,88001.0,87987.0,0.00952737]
[1769534845396,0.00086244,88001.0,87981.0,0.10244]
[1769534845397,0.00086244,88001.0,87988.0,0.00258838]
[1769534846300,0.011376,88000.0,87988.0,0.00258838]
[1769534846602,0.011376,87998.0,87988.0,0.00258838]
[1769534846802,0.00086244,87997.0,87988.0,0.00258838]
[1769534847400,0.00086244,87997.0,87981.0,0.10244]
[1769534847602,0.00086244,87997.0,87982.0,0.00258838]
[1769534847800,0.00086244,87997.0,87973.0,0.01138]
[1769534847801,0.011378,87986.0,87969.0,0.10244]
[1769534848104,0.00086244,87985.0,87973.0,0.00258838]
[1769534849501,0.011378,87984.0,87971.0,0.10244]
[1769534849802,0.02114107,87980.0,87964.0,0.10244]
[1769534850006,0.011379,87976.0,87964.0,0.10244]
[1769534850207,0.00086244,87975.0,87964.0,0.10244]
[1769534850809,0.00976207,87969.0,87948.0,0.10244]
[1769534851101,0.02200451,87968.0,87948.0,0.10244]
[1769534851306,0.011381,87966.0,87948.0,0.10244]
[1769534851609,0.00258838,87965.0,87948.0,0.10244]
[1769534851996,0.00258838,87965.0,87948.0,0.113823]
[1769534852608,0.00258838,87965.0,87950.0,0.011383]
[1769534853704,0.10244,87974.0,87956.0,0.00952737]
[1769534853902,0.10244,87980.0,87962.0,0.00952737]
[1769534854204,0.00258838,87974.0,87962.0,0.00952737]
[1769534854409,0.01138,87969.0,87949.0,0.00952737]
[1769534854595,0.00976207,87976.0,87952.0,0.011382]
[1769534854596,0.00258838,87968.0,87952.0,0.011382]
[1769534854791,0.00258838,87968.0,87951.0,0.00952737]
[1769534855901,0.00976207,87976.0,87957.0,0.011382]
[1769534856203,0.10244,87982.0,87955.0,0.00952737]
[1769534856204,0.01396738,87975.0,87955.0,0.00952737]
[1769534856802,0.01396738,87975.0,87953.0,0.00568489]
[1769534856803,0.01235045,87975.0,87953.0,0.00568489]
[1769534857010,0.00976207,87971.0,87953.0,0.00568489]
[1769534857308,0.00976207,87969.0,87953.0,0.00568489]
[1769534857611,0.00258838,87968.0,87953.0,0.00568489]
[1769534859201,0.00976207,87985.0,87965.0,0.011381]
[1769534859403,0.011,88007.0,87977.0,0.00952737]
[1769534859608,0.011377,87993.0,87973.0,0.10244]
[1769534859801,0.00258838,87992.0,87972.0,0.10244]
[1769534859997,0.011377,87990.0,87972.0,0.10244]
[1769534860203,0.01396638,87989.0,87972.0,0.10244]
[1769534860402,0.011378,87987.0,87972.0,0.10244]
[1769534860602,0.00258838,87986.0,87972.0,0.10244]
[1769534860798,0.011378,87985.0,87972.0,0.10244]
[1769534861003,0.011378,87983.0,87969.0,0.10244]
[1769534861208,0.00258838,87982.0,87969.0,0.10244]
[1769534861708,0.113817,87993.0,87973.0,0.00952737]
[1769534861910,0.00258838,87989.0,87973.0,0.00952737]
[1769534862603,0.00258838,87989.0,87974.0,0.01138]
[1769534862800,0.00258838,87989.0,87975.0,0.00952737]
[1769534864015,0.00258838,87989.0,87969.0,0.10244]
[1769534865212,0.011378,87987.0,87970.0,0.00952737]
[1769534865410,0.00258838,87986.0,87970.0,0.00952737]
[1769534866506,0.00258838,87986.0,87972.0,0.00952737]
[1769534866710,0.097,88001.0,87975.0,0.00952737]
[1769534867010,0.113813,88022.0,88002.0,0.011376]
[1769534867314,0.113813,88022.0,88000.0,0.00952737]
[1769534867315,0.00258838,88018.0,88006.0,0.011375]
[1769534867817,0.10244,88022.0,88004.0,0.00952737]
[1769534868008,0.00258838,88017.0,88004.0,0.00952737]
[1769534868207,0.00258838,88017.0,87996.0,0.10244]
[1769534868416,0.00258838,88017.0,87997.0,0.011377]
[1769534868615,0.00258838,88017.0,87996.0,0.10244]
[1769534869319,0.011375,88009.0,87986.0,0.00952737]
[1769534869511,0.00258838,88008.0,87987.0,0.40212]
[1769534869819,0.00258838,88008.0,87988.0,0.00952737]
[1769534870606,0.00258838,88008.0,87990.0,0.00952737]
[1769534872009,0.011376,88002.0,87985.0,0.1024]
[1769534872209,0.00258838,88001.0,87985.0,0.1024]
[1769534872519,0.00258838,88001.0,87989.0,0.00952737]
[1769534872818,0.1024,88011.0,87993.0,0.00952737]
[1769534873115,0.00258838,88010.0,87993.0,0.00952737]
[1769534873611,0.011374,88016.0,87994.0,0.00952737]
[1769534873821,0.00258838,88015.0,88000.0,0.00952737]
[1769534875420,0.011374,88014.0,88000.0,0.00952737]
[1769534875608,0.00258838,88013.0,88000.0,0.00952737]
[1769534875809,0.00258838,88013.0,87996.0,0.1024]
[1769534876010,0.011375,88007.0,87986.0,0.011378]
[1769534876223,0.00258838,88006.0,87990.0,0.29968]
[1769534876421,0.00258838,88006.0,87990.0,0.311057]
[1769534876715,0.1024,88017.0,87990.0,0.311057]
[1769534876716,0.011374,88016.0,87995.0,0.011377]
[1769534877020,0.00258838,88012.0,87996.0,0.00968239]
[1769534877805,0.00258838,88012.0,87997.0,0.00968239]
[1769534878006,0.1024,88014.0,87999.0,0.011376]
[1769534878222,0.00258838,88014.0,88000.0,0.00968239]
[1769534878417,0.011375,88012.0,87992.0,0.02105939]
[1769534878614,0.00258838,88011.0,87992.0,0.00968239]
[1769534878921,0.011375,88006.0,87990.0,0.29968]
[1769534879120,0.00258838,88005.0,87990.0,0.29968]
[1769534879421,0.01168848,88005.0,87987.0,0.1024]
[1769534879613,0.0091001,88004.0,87987.0,0.1024]
[1769534879805,0.011376,88001.0,87987.0,0.1024]
[1769534880006,0.011376,87999.0,87987.0,0.1024]
[1769534880319,0.011378,87989.0,87971.0,0.1024]
[1769534880623,0.00258838,87988.0,87971.0,0.11378]